[Event "6th Porticcio Open 2019"]
[Site "Porticcio"]
[Date "2019.06.30"]
[Round "3.6"]
[White "Rakotomaharo, Fy Antenaina"]
[Black "Sengupta, Deep"]
[Result "1/2-1/2"]
[ECO "A50"]
[WhiteElo "2419"]
[BlackElo "2559"]
[Annotator "ChessBase"]
[PlyCount "105"]
[EventDate "2019.06.23"]
[EventType "swiss"]
[EventCountry "FRA"]
[SourceTitle "playchess.com"]
[Source "ChessBase"]
[SourceQuality "1"]
[TimeControl "5400+30"]

1. d4 {[%emt 0:00:03]} Nf6 {[%emt 0:00:00]} 2. c4 {[%emt 0:00:05]} b6 {[%emt 0:00:00]} 3. Nc3 {[%emt 0:03:40]} Bb7 {[%emt 0:00:00]} 4. Nf3 {[%emt 0:01:33]} e6 {[%emt 0:00:00]} 5. a3 {[%emt 0:00:26]} d5 {[%emt 0:00:00]} 6. Bg5 {[%emt 0:01:54]} Be7 {[%emt 0:03:32]} 7. e3 {[%emt 0:00:44]} h6 {[%emt 0:01:57]} 8. Bh4 {[%emt 0:03:27]} Nbd7 {[%emt 0:01:14]} 9. Rc1 {[%emt 0:01:00]} O-O {[%emt 0:01:09]} 10. Bd3 {[%emt 0:09:47]} dxc4 {[%emt 0:02:22]} 11. Bxc4 {[%emt 0:00:06]} c5 {[%emt 0:00:06]} 12. O-O {[%emt 0:01:54]} Rc8 {[%emt 0:02:32]} 13. Ba2 {[%emt 0:00:36]} cxd4 {[%emt 0:01:44]} 14. exd4 {[%emt 0:00:08]} Ne4 {[%emt 0:01:59]} 15. Bg3 {[%emt 0:18:43]} Nxc3 {[%emt 0:05:00]} 16. Rxc3 {[%emt 0:00:06]} Nf6 {[%emt 0:00:52]} 17. Ne5 {[%emt 0:09:19]} Rxc3 {[%emt 0:05:09]} 18. bxc3 {[%emt 0:00:04]} Qa8 {[%emt 0:00:25]} 19. f3 {[%emt 0:08:00]} Bxa3 {[%emt 0:00:20]} 20. Re1 {[%emt 0:01:25]} Bc8 {[%emt 0:27:37]} 21. Qc2 {[%emt 0:07:20]} Nh5 {[%emt 0:03:09]} 22. Bh4 {[%emt 0:06:19]} Bd6 {[%emt 0:01:58]} 23. Bb1 {[%emt 0:05:03]} f5 {[%emt 0:00:09]} 24. Ng6 {[%emt 0:00:05]} Rf7 {[%emt 0:02:11]} 25. Ba2 {[%emt 0:01:12]} Kh7 {[%emt 0:11:50]} 26. Bxe6 {[%emt 0:03:38]} Bxe6 {[%emt 0:00:05]} 27. Rxe6 {[%emt 0:00:04]} Qd5 {[%emt 0:00:34]} 28. Qe2 {[%emt 0:02:36]} Rc7 {[%emt 0:06:39]} 29. Be7 {[%emt 0:06:29]} Bxe7 {[%emt 0:07:13]} 30. Nxe7 {[%emt 0:00:37]} Qb3 {[%emt 0:00:07]} 31. Re3 {[%emt 0:08:27]} Nf4 {[%emt 0:13:33]} 32. Qd2 {[%emt 0:00:30]} Qf7 {[%emt 0:00:54]} 33. Re5 {[%emt 0:00:28]} Rxe7 {[%emt 0:01:33]} 34. Qxf4 {[%emt 0:00:05]} Rxe5 {[%emt 0:00:10]} 35. Qxe5 {[%emt 0:00:06]} Qf6 {[%emt 0:00:29]} 36. Qb5 {[%emt 0:01:05]} Qe6 {[%emt 0:00:52]} 37. Kf2 {[%emt 0:00:10]} f4 {[%emt 0:00:23]} 38. Qd3+ {[%emt 0:00:08]} Qg6 {[%emt 0:00:04]} 39. Qd2 {[%emt 0:00:37]} Qd6 {[%emt 0:00:24]} 40. Qd3+ {[%emt 0:00:17]} Qg6 {[%emt 0:00:06]} 41. Qd2 {[%emt 0:00:03]} Qd6 {[%emt 0:00:26]} 42. Qd3+ {[%emt 0:00:14]} Kg8 {[%emt 0:00:41]} 43. Qb5 {[%emt 0:01:26]} Qe6 {[%emt 0:00:35]} 44. Kf1 {[%emt 0:00:15]} Kf7 {[%emt 0:01:20]} 45. Qa6 {[%emt 0:00:43]} Qd7 {[%emt 0:00:14]} 46. Ke2 {[%emt 0:00:40]} Ke7 {[%emt 0:00:19]} 47. Kd2 {[%emt 0:00:30]} Kd8 {[%emt 0:00:36]} 48. Kc2 {[%emt 0:00:46]} g5 {[%emt 0:00:24]} 49. h3 {[%emt 0:00:43]} Qf5+ {[%emt 0:00:19]} 50. Kb2 {[%emt 0:00:08]} Qd7 {[%emt 0:00:05]} 51. Kc2 {[%emt 0:00:12]} Qf5+ {[%emt 0:00:04]} 52. Kb2 {[%emt 0:00:03]} Qd7 {[%emt 0:00:02]} 53. Kc2 {[%emt 0:00:05]} 1/2-1/2

[Event "6th Porticcio Open 2019"]
[Site "Porticcio"]
[Date "2019.06.30"]
[Round "3.7"]
[White "Libiszewski, Fabien"]
[Black "Guichard, Pauline"]
[Result "1/2-1/2"]
[ECO "C55"]
[WhiteElo "2518"]
[BlackElo "2409"]
[Annotator "ChessBase"]
[PlyCount "73"]
[EventDate "2019.06.23"]
[EventType "swiss"]
[EventCountry "FRA"]
[SourceTitle "playchess.com"]
[Source "ChessBase"]
[SourceQuality "1"]
[TimeControl "5400+30"]

1. e4 {[%emt 0:00:00]} e5 {[%emt 0:00:00]} 2. Nf3 {[%emt 0:00:28]} Nc6 {[%emt 0:00:10]} 3. Bc4 {[%emt 0:00:23]} Nf6 {[%emt 0:00:42]} 4. d3 {[%emt 0:00:35]} Be7 {[%emt 0:01:00]} 5. O-O {[%emt 0:00:46]} O-O {[%emt 0:00:30]} 6. Re1 {[%emt 0:01:49]} d6 {[%emt 0:02:31]} 7. a4 {[%emt 0:01:14]} Kh8 {[%emt 0:00:30]} 8. c3 {[%emt 0:02:11]} Ng8 {[%emt 0:01:29]} 9. d4 {[%emt 0:04:13]} f5 {[%emt 0:02:24]} 10. dxe5 {[%emt 0:06:32]} fxe4 {[%emt 0:01:06]} 11. Rxe4 {[%emt 0:00:41]} Rxf3 {[%emt 0:01:11]} 12. gxf3 {[%emt 0:02:44]} Nxe5 {[%emt 0:04:44]} 13. Rxe5 {[%emt 0:17:25]} dxe5 {[%emt 0:00:40]} 14. Qxd8 {[%emt 0:00:07]} Bxd8 {[%emt 0:00:12]} 15. Nd2 {[%emt 0:00:15]} Nf6 {[%emt 0:08:24]} 16. Ne4 {[%emt 0:02:26]} Nxe4 {[%emt 0:03:38]} 17. fxe4 {[%emt 0:00:03]} Bh3 {[%emt 0:03:49]} 18. f4 {[%emt 0:07:22]} Bf6 {[%emt 0:06:06]} 19. f5 {[%emt 0:01:24]} g6 {[%emt 0:02:38]} 20. fxg6 {[%emt 0:01:46]} hxg6 {[%emt 0:01:27]} 21. Be3 {[%emt 0:00:25]} Kg7 {[%emt 0:03:45]} 22. Rd1 {[%emt 0:00:50]} a6 {[%emt 0:02:55]} 23. a5 {[%emt 0:05:40]} Rd8 {[%emt 0:02:10]} 24. Rxd8 {[%emt 0:00:17]} Bxd8 {[%emt 0:00:10]} 25. Kf2 {[%emt 0:00:53]} Kf6 {[%emt 0:01:24]} 26. b4 {[%emt 0:00:16]} Be6 {[%emt 0:01:15]} 27. Bg5+ {[%emt 0:01:18]} Kxg5 {[%emt 0:00:40]} 28. Bxe6 {[%emt 0:00:05]} c5 {[%emt 0:01:21]} 29. Bc8 {[%emt 0:01:12]} cxb4 {[%emt 0:00:34]} 30. cxb4 {[%emt 0:00:07]} Be7 {[%emt 0:00:26]} 31. Bxb7 {[%emt 0:00:12]} Bxb4 {[%emt 0:00:19]} 32. Bxa6 {[%emt 0:00:09]} Bxa5 {[%emt 0:00:12]} 33. Kf3 {[%emt 0:00:06]} Bb4 {[%emt 0:00:20]} 34. Bc4 {[%emt 0:00:07]} Ba5 {[%emt 0:00:11]} 35. Ba6 {[%emt 0:00:06]} Bb4 {[%emt 0:00:08]} 36. Bc4 {[%emt 0:00:05]} Ba5 {[%emt 0:00:08]} 37. Ba6 1/2-1/2

[Event "6th Porticcio Open 2019"]
[Site "Porticcio"]
[Date "2019.07.01"]
[Round "4.1"]
[White "Donchenko, Alexander"]
[Black "Van Wely, Loek"]
[Result "1-0"]
[ECO "A06"]
[WhiteElo "2618"]
[BlackElo "2604"]
[Annotator "ChessBase"]
[PlyCount "63"]
[EventDate "2019.06.23"]
[EventType "swiss"]
[EventCountry "FRA"]
[SourceTitle "playchess.com"]
[Source "ChessBase"]
[SourceQuality "1"]
[TimeControl "5400+30"]

1. Nf3 {[%emt 0:00:00]} d5 {[%emt 0:03:33]} 2. g3 {[%emt 0:00:00]} g6 {[%emt 0:01:55]} 3. Bg2 {[%emt 0:00:25]} Bg7 {[%emt 0:00:06]} 4. d4 {[%emt 0:00:08]} Nf6 {[%emt 0:02:33]} 5. O-O {[%emt 0:00:19]} c6 {[%emt 0:03:08]} 6. b3 {[%emt 0:02:42]} O-O {[%emt 0:00:42]} 7. Bb2 {[%emt 0:00:54]} a5 {[%emt 0:01:08]} 8. Nc3 {[%emt 0:06:29]} Nbd7 {[%emt 0:10:57]} 9. e3 {[%emt 0:26:14]} b5 {[%emt 0:05:21]} 10. Re1 {[%emt 0:04:05]} Bb7 {[%emt 0:08:04]} 11. Nd2 {[%emt 0:14:33]} Qb6 {[%emt 0:11:14]} 12. e4 {[%emt 0:04:13]} Qxd4 {[%emt 0:15:53]} 13. exd5 {[%emt 0:01:44]} Nxd5 {[%emt 0:00:19]} 14. Nxd5 {[%emt 0:01:50]} Qxb2 {[%emt 0:00:07]} 15. Rb1 {[%emt 0:00:13]} Qxa2 {[%emt 0:00:10]} 16. Nxe7+ {[%emt 0:00:40]} Kh8 {[%emt 0:00:04]} 17. Ne4 {[%emt 0:01:23]} Rad8 {[%emt 0:04:35]} 18. Nd6 {[%emt 0:01:04]} Ne5 {[%emt 0:02:28]} 19. f4 {[%emt 0:03:56]} Rd7 {[%emt 0:01:20]} 20. fxe5 {[%emt 0:02:36]} Rxe7 {[%emt 0:00:06]} 21. Nxb7 {[%emt 0:00:04]} Rxb7 {[%emt 0:00:41]} 22. Qc1 {[%emt 0:00:11]} a4 {[%emt 0:05:43]} 23. Ra1 {[%emt 0:00:14]} axb3 {[%emt 0:04:59]} 24. Rxa2 {[%emt 0:00:09]} bxa2 {[%emt 0:00:02]} 25. Qa3 {[%emt 0:00:25]} b4 {[%emt 0:02:14]} 26. Qxa2 {[%emt 0:00:15]} Re7 {[%emt 0:00:13]} 27. Qa5 {[%emt 0:00:41]} Re6 {[%emt 0:00:55]} 28. Qxb4 {[%emt 0:00:45]} Rfe8 {[%emt 0:00:09]} 29. Kh1 {[%emt 0:02:17]} Kg8 {[%emt 0:00:44]} 30. Bh3 {[%emt 0:00:39]} Rxe5 {[%emt 0:00:54]} 31. Rxe5 {[%emt 0:00:07]} Bxe5 {[%emt 0:00:08]} 32. Bd7 {[%emt 0:00:14]} 1-0

[Event "6th Porticcio Open 2019"]
[Site "Porticcio"]
[Date "2019.07.01"]
[Round "4.2"]
[White "Sengupta, Deep"]
[Black "Fedorchuk, Sergey A."]
[Result "1-0"]
[ECO "A45"]
[WhiteElo "2559"]
[BlackElo "2631"]
[Annotator "ChessBase"]
[PlyCount "107"]
[EventDate "2019.06.23"]
[EventType "swiss"]
[EventCountry "FRA"]
[SourceTitle "playchess.com"]
[Source "ChessBase"]
[SourceQuality "1"]
[TimeControl "5400+30"]

1. d4 {[%emt 0:00:00]} Nf6 {[%emt 0:00:00]} 2. Bf4 {[%emt 0:00:00]} e6 {[%emt 0:05:06]} 3. e3 {[%emt 0:00:00]} c5 {[%emt 0:03:01]} 4. Nd2 {[%emt 0:01:28]} d5 {[%emt 0:05:46]} 5. c3 {[%emt 0:00:06]} Nc6 {[%emt 0:06:29]} 6. Bd3 {[%emt 0:00:35]} Bd6 {[%emt 0:01:45]} 7. Bxd6 {[%emt 0:00:42]} Qxd6 {[%emt 0:00:07]} 8. f4 {[%emt 0:00:02]} Bd7 {[%emt 0:06:05]} 9. a3 {[%emt 0:00:07]} Ne7 {[%emt 0:00:58]} 10. Qe2 {[%emt 0:12:30]} cxd4 {[%emt 0:05:24]} 11. cxd4 {[%emt 0:00:05]} Qb6 {[%emt 0:00:21]} 12. Ngf3 {[%emt 0:09:01]} Qxb2 {[%emt 0:02:33]} 13. O-O {[%emt 0:00:06]} O-O {[%emt 0:09:52]} 14. a4 {[%emt 0:10:00]} Qb6 {[%emt 0:06:46]} 15. Ne5 {[%emt 0:01:20]} Rfc8 {[%emt 0:11:40]} 16. a5 {[%emt 0:11:06]} Qd8 {[%emt 0:05:55]} 17. g4 {[%emt 0:03:11]} Be8 {[%emt 0:00:16]} 18. Rf3 {[%emt 0:03:38]} Rc3 {[%emt 0:11:31]} 19. Rh3 {[%emt 0:03:50]} Ng6 {[%emt 0:00:21]} 20. f5 {[%emt 0:19:41]} exf5 {[%emt 0:00:19]} 21. gxf5 {[%emt 0:00:04]} Nf8 {[%emt 0:00:40]} 22. Kh1 {[%emt 0:00:13]} Rac8 {[%emt 0:00:27]} 23. Rg1 {[%emt 0:00:05]} Rc1 {[%emt 0:00:53]} 24. Nf1 {[%emt 0:00:05]} Qe7 {[%emt 0:03:41]} 25. Qg2 {[%emt 0:08:55]} g6 {[%emt 0:00:30]} 26. Qg5 {[%emt 0:00:04]} R8c7 {[%emt 0:00:24]} 27. Rf3 {[%emt 0:01:21]} Ne4 {[%emt 0:04:51]} 28. Qh6 {[%emt 0:02:58]} f6 {[%emt 0:00:28]} 29. Ng4 {[%emt 0:06:19]} R7c6 {[%emt 0:02:13]} 30. h4 {[%emt 0:02:47]} Rd1 {[%emt 0:02:35]} 31. Be2 {[%emt 0:02:47]} Re1 {[%emt 0:00:07]} 32. Bd3 {[%emt 0:00:07]} Bd7 {[%emt 0:02:28]} 33. Qf4 {[%emt 0:01:14]} Kh8 {[%emt 0:01:02]} 34. Bb5 {[%emt 0:01:23]} Rcc1 {[%emt 0:01:29]} 35. Bxd7 {[%emt 0:00:05]} Nxd7 {[%emt 0:00:44]} 36. fxg6 {[%emt 0:01:05]} hxg6 {[%emt 0:00:03]} 37. Ngh2 {[%emt 0:00:57]} Qh7 {[%emt 0:01:05]} 38. Rh3 {[%emt 0:00:31]} Qh5 {[%emt 0:00:22]} 39. Rg2 {[%emt 0:00:28]} Kh7 {[%emt 0:00:33]} 40. Kg1 {[%emt 0:00:12]} Qf5 {[%emt 0:00:36]} 41. Qxf5 {[%emt 0:00:16]} gxf5 {[%emt 0:00:06]} 42. Rf3 {[%emt 0:00:04]} f4 {[%emt 0:00:37]} 43. Rxf4 {[%emt 0:00:14]} Nf8 {[%emt 0:00:38]} 44. Rf5 {[%emt 0:01:15]} Ng6 {[%emt 0:00:27]} 45. Rxd5 {[%emt 0:00:18]} Kh6 {[%emt 0:00:40]} 46. Rd8 {[%emt 0:00:06]} f5 {[%emt 0:00:25]} 47. Rg8 {[%emt 0:00:36]} Rc6 {[%emt 0:00:05]} 48. h5 {[%emt 0:01:31]} Kxh5 {[%emt 0:00:41]} 49. Nf3 {[%emt 0:00:06]} Rxf1+ {[%emt 0:00:21]} 50. Kxf1 {[%emt 0:00:04]} Rc1+ {[%emt 0:00:02]} 51. Ne1 {[%emt 0:00:09]} Rc6 {[%emt 0:00:36]} 52. Nd3 {[%emt 0:00:17]} Ng5 {[%emt 0:00:35]} 53. Nf4+ {[%emt 0:00:39]} Nxf4 {[%emt 0:00:04]} 54. R2xg5+ {[%emt 0:00:10]} 1-0

[Event "6th Porticcio Open 2019"]
[Site "Porticcio"]
[Date "2019.07.01"]
[Round "4.3"]
[White "Onischuk, Vladimir"]
[Black "Cornette, Matthieu"]
[Result "1-0"]
[ECO "C00"]
[WhiteElo "2630"]
[BlackElo "2548"]
[Annotator "ChessBase"]
[PlyCount "81"]
[EventDate "2019.06.23"]
[EventType "swiss"]
[EventCountry "FRA"]
[SourceTitle "playchess.com"]
[Source "ChessBase"]
[SourceQuality "1"]
[TimeControl "5400+30"]

1. e4 {[%emt 0:01:18]} e6 {[%emt 0:00:00]} 2. d4 {[%emt 0:01:45]} d5 {[%emt 0:00:00]} 3. Bd3 {[%emt 0:02:53]} dxe4 {[%emt 0:00:40]} 4. Bxe4 {[%emt 0:00:14]} Nf6 {[%emt 0:00:11]} 5. Bf3 {[%emt 0:00:04]} c5 {[%emt 0:00:53]} 6. Ne2 {[%emt 0:00:14]} Be7 {[%emt 0:00:58]} 7. Nbc3 {[%emt 0:00:59]} O-O {[%emt 0:01:08]} 8. d5 {[%emt 0:00:21]} exd5 {[%emt 0:01:18]} 9. Nxd5 {[%emt 0:00:05]} Nxd5 {[%emt 0:00:07]} 10. Qxd5 {[%emt 0:00:05]} Nc6 {[%emt 0:01:23]} 11. Qxd8 {[%emt 0:00:12]} Rxd8 {[%emt 0:01:02]} 12. Bxc6 {[%emt 0:00:22]} bxc6 {[%emt 0:00:07]} 13. Bd2 {[%emt 0:00:04]} Bh4 {[%emt 0:32:39]} 14. Ng3 {[%emt 0:08:45]} Re8+ {[%emt 0:06:12]} 15. Be3 {[%emt 0:02:08]} Bg4 {[%emt 0:01:07]} 16. Kd2 {[%emt 0:07:55]} Rad8+ {[%emt 0:11:14]} 17. Kc1 {[%emt 0:00:22]} c4 {[%emt 0:10:23]} 18. a4 {[%emt 0:06:46]} a6 {[%emt 0:04:10]} 19. a5 {[%emt 0:01:13]} Bxg3 {[%emt 0:06:51]} 20. hxg3 {[%emt 0:00:09]} Be6 {[%emt 0:00:10]} 21. Bb6 {[%emt 0:03:23]} Rd5 {[%emt 0:00:55]} 22. Re1 {[%emt 0:02:39]} Kf8 {[%emt 0:00:49]} 23. Ra3 {[%emt 0:02:13]} Bg4 {[%emt 0:00:58]} 24. Rh1 {[%emt 0:03:27]} Rh5 {[%emt 0:04:58]} 25. Rg1 {[%emt 0:05:54]} Rhe5 {[%emt 0:00:40]} 26. Be3 {[%emt 0:09:24]} Rd5 {[%emt 0:01:01]} 27. Ra4 {[%emt 0:00:30]} Red8 {[%emt 0:01:54]} 28. b3 {[%emt 0:01:34]} Rd1+ {[%emt 0:03:41]} 29. Rxd1 {[%emt 0:00:08]} Rxd1+ {[%emt 0:00:01]} 30. Kb2 {[%emt 0:00:04]} Be6 {[%emt 0:02:11]} 31. bxc4 {[%emt 0:00:57]} Ke7 {[%emt 0:00:04]} 32. Rb4 {[%emt 0:00:45]} Kd6 {[%emt 0:03:16]} 33. c5+ {[%emt 0:02:54]} Kd5 {[%emt 0:00:03]} 34. Rb6 {[%emt 0:00:49]} Bc8 {[%emt 0:00:06]} 35. Rb8 {[%emt 0:00:18]} Bg4 {[%emt 0:00:05]} 36. Rb7 {[%emt 0:01:46]} Bh5 {[%emt 0:03:49]} 37. g4 {[%emt 0:03:45]} Bxg4 {[%emt 0:00:16]} 38. Rxf7 {[%emt 0:00:07]} Re1 {[%emt 0:00:43]} 39. c4+ {[%emt 0:06:34]} Ke5 {[%emt 0:01:19]} 40. Rxg7 {[%emt 0:01:43]} h5 {[%emt 0:00:02]} 41. Ra7 {[%emt 0:02:08] Kd5} 1-0

[Event "6th Porticcio Open 2019"]
[Site "Porticcio"]
[Date "2019.07.01"]
[Round "4.5"]
[White "Vocaturo, Daniele"]
[Black "Yankelevich, Lev"]
[Result "0-1"]
[ECO "C42"]
[WhiteElo "2612"]
[BlackElo "2484"]
[Annotator "ChessBase"]
[PlyCount "86"]
[EventDate "2019.06.23"]
[EventType "swiss"]
[EventCountry "FRA"]
[SourceTitle "playchess.com"]
[Source "ChessBase"]
[SourceQuality "1"]
[TimeControl "5400+30"]

1. e4 {[%emt 0:00:00]} e5 {[%emt 0:00:00]} 2. Nf3 {[%emt 0:00:01]} Nf6 {[%emt 0:00:00]} 3. Nxe5 {[%emt 0:01:03]} d6 {[%emt 0:00:00]} 4. Nf3 {[%emt 0:00:06]} Nxe4 {[%emt 0:00:00]} 5. Nc3 {[%emt 0:00:22]} Nxc3 {[%emt 0:00:00]} 6. dxc3 {[%emt 0:00:08]} Be7 {[%emt 0:00:00]} 7. Be3 {[%emt 0:01:08]} O-O {[%emt 0:00:04]} 8. Qd2 {[%emt 0:00:12]} Nd7 {[%emt 0:00:04]} 9. O-O-O {[%emt 0:01:47]} c6 {[%emt 0:00:36]} 10. Kb1 {[%emt 0:02:48]} Re8 {[%emt 0:00:05]} 11. h4 {[%emt 0:04:44]} d5 {[%emt 0:00:03]} 12. Bd3 {[%emt 0:02:46]} Bc5 {[%emt 0:00:05]} 13. Bg5 {[%emt 0:03:46]} f6 {[%emt 0:13:59]} 14. Bf4 {[%emt 0:02:57]} Bf8 {[%emt 0:05:08]} 15. Rhe1 {[%emt 0:15:08]} Nc5 {[%emt 0:03:03]} 16. Nd4 {[%emt 0:00:22]} Nxd3 {[%emt 0:16:23]} 17. Qxd3 {[%emt 0:00:29]} Bg4 {[%emt 0:00:28]} 18. f3 {[%emt 0:02:19]} Bh5 {[%emt 0:00:08]} 19. Ne6 {[%emt 0:06:46]} Qd7 {[%emt 0:03:15]} 20. Nxf8 {[%emt 0:02:15]} Rxf8 {[%emt 0:00:19]} 21. c4 {[%emt 0:00:14]} Bf7 {[%emt 0:07:01]} 22. b3 {[%emt 0:02:49]} Rfe8 {[%emt 0:05:20]} 23. Qd4 {[%emt 0:02:00]} a6 {[%emt 0:04:13]} 24. Kb2 {[%emt 0:02:43]} h5 {[%emt 0:04:16]} 25. cxd5 {[%emt 0:07:18]} Qxd5 {[%emt 0:07:37]} 26. Qb6 {[%emt 0:03:32]} Qf5 {[%emt 0:00:22]} 27. Qc7 {[%emt 0:05:56]} Rec8 {[%emt 0:06:26]} 28. Qd6 {[%emt 0:02:19]} Re8 {[%emt 0:00:20]} 29. Qc7 {[%emt 0:04:23]} Rec8 {[%emt 0:00:04]} 30. Qd6 {[%emt 0:00:18]} Re8 {[%emt 0:00:29]} 31. Rxe8+ {[%emt 0:05:37]} Rxe8 {[%emt 0:00:05]} 32. Rd2 {[%emt 0:00:22]} c5 {[%emt 0:02:38]} 33. Qc7 {[%emt 0:02:20]} Be6 {[%emt 0:07:34]} 34. g3 {[%emt 0:02:29]} b5 {[%emt 0:01:51]} 35. Qc6 {[%emt 0:02:27]} Rc8 {[%emt 0:00:02]} 36. Qxa6 {[%emt 0:02:44]} c4 {[%emt 0:00:56]} 37. Re2 {[%emt 0:00:38]} Bf7 {[%emt 0:00:50]} 38. Qd6 {[%emt 0:01:29]} Kh7 {[%emt 0:01:57]} 39. bxc4 {[%emt 0:06:21]} bxc4 {[%emt 0:00:25]} 40. Qb4 {[%emt 0:01:48]} c3+ {[%emt 0:02:51]} 41. Ka1 {[%emt 0:00:25]} Rc4 {[%emt 0:01:54]} 42. Qb6 {[%emt 0:02:45]} Qd5 {[%emt 0:00:54]} 43. Re1 {[%emt 0:00:42]} Re4 {[%emt 0:00:21]} 0-1

[Event "6th Porticcio Open 2019"]
[Site "Porticcio"]
[Date "2019.07.01"]
[Round "4.6"]
[White "Guichard, Pauline"]
[Black "Lagarde, Maxime"]
[Result "0-1"]
[ECO "A10"]
[WhiteElo "2409"]
[BlackElo "2599"]
[Annotator "ChessBase"]
[PlyCount "112"]
[EventDate "2019.06.23"]
[EventType "swiss"]
[EventCountry "FRA"]
[SourceTitle "playchess.com"]
[Source "ChessBase"]
[SourceQuality "1"]
[TimeControl "5400+30"]

1. c4 {[%emt 0:00:00]} f5 {[%emt 0:00:22]} 2. Nc3 {[%emt 0:00:00]} Nf6 {[%emt 0:00:05]} 3. g3 {[%emt 0:00:05]} g6 {[%emt 0:00:11]} 4. Bg2 {[%emt 0:00:13]} Bg7 {[%emt 0:00:07]} 5. d3 {[%emt 0:00:14]} d6 {[%emt 0:00:37]} 6. e3 {[%emt 0:01:43]} O-O {[%emt 0:00:38]} 7. Nge2 {[%emt 0:00:09]} e5 {[%emt 0:01:15]} 8. O-O {[%emt 0:00:30]} Nc6 {[%emt 0:02:02]} 9. Rb1 {[%emt 0:04:54]} Be6 {[%emt 0:01:05]} 10. Nd5 {[%emt 0:08:15]} Bf7 {[%emt 0:03:42]} 11. Nec3 {[%emt 0:06:04]} Qd7 {[%emt 0:03:20]} 12. b4 {[%emt 0:07:48]} Nxd5 {[%emt 0:04:08]} 13. Nxd5 {[%emt 0:01:54]} Nd8 {[%emt 0:02:18]} 14. b5 {[%emt 0:04:17]} Ne6 {[%emt 0:01:15]} 15. f4 {[%emt 0:12:34]} Rfe8 {[%emt 0:10:54]} 16. Qc2 {[%emt 0:02:55]} Rac8 {[%emt 0:08:44]} 17. Nc3 {[%emt 0:06:17]} c6 {[%emt 0:02:14]} 18. bxc6 {[%emt 0:00:37]} bxc6 {[%emt 0:00:07]} 19. fxe5 {[%emt 0:00:54]} dxe5 {[%emt 0:01:15]} 20. Ba3 {[%emt 0:00:31]} Red8 {[%emt 0:08:00]} 21. Rfd1 {[%emt 0:02:22]} g5 {[%emt 0:04:14]} 22. Na4 {[%emt 0:02:42]} Bh5 {[%emt 0:05:46]} 23. Rd2 {[%emt 0:02:03]} f4 {[%emt 0:04:45]} 24. Nc5 {[%emt 0:06:58]} Nxc5 {[%emt 0:07:49]} 25. Bxc5 {[%emt 0:00:07]} Bg6 {[%emt 0:04:11]} 26. e4 {[%emt 0:15:34]} g4 {[%emt 0:02:09]} 27. Rdd1 {[%emt 0:03:14]} h5 {[%emt 0:03:28]} 28. Qf2 {[%emt 0:00:31]} Rf8 {[%emt 0:01:03]} 29. d4 {[%emt 0:06:12]} fxg3 {[%emt 0:06:50]} 30. Qxg3 {[%emt 0:00:05]} exd4 {[%emt 0:02:22]} 31. Bxf8 {[%emt 0:00:06]} Rxf8 {[%emt 0:00:04]} 32. Rb8 {[%emt 0:00:13]} Rxb8 {[%emt 0:01:38]} 33. Qxb8+ {[%emt 0:00:06]} Kh7 {[%emt 0:00:03]} 34. c5 {[%emt 0:02:50]} Qe7 {[%emt 0:02:33]} 35. Qd6 {[%emt 0:03:25]} Qg5 {[%emt 0:00:10]} 36. Re1 {[%emt 0:00:25]} Be5 {[%emt 0:00:51]} 37. Qd7+ {[%emt 0:00:46]} Kh6 {[%emt 0:00:14]} 38. Rf1 {[%emt 0:00:20]} Qh4 {[%emt 0:02:49]} 39. h3 {[%emt 0:00:51]} Qg3 {[%emt 0:01:41]} 40. hxg4 {[%emt 0:00:06]} hxg4 {[%emt 0:01:50]} 41. Rf2 {[%emt 0:00:42]} d3 {[%emt 0:01:44]} 42. Qd8 {[%emt 0:00:06]} Qe3 {[%emt 0:01:18]} 43. Qf8+ {[%emt 0:00:50]} Bg7 {[%emt 0:00:19]} 44. Qf4+ {[%emt 0:00:32]} Qxf4 {[%emt 0:00:04]} 45. Rxf4 {[%emt 0:00:04]} d2 {[%emt 0:00:12]} 46. Rf1 {[%emt 0:00:08]} Bd4+ {[%emt 0:00:26]} 47. Kh2 {[%emt 0:00:19]} Bf2 {[%emt 0:00:26]} 48. Rd1 {[%emt 0:00:57]} Be1 {[%emt 0:00:11]} 49. Kg1 {[%emt 0:00:35]} Kg5 {[%emt 0:02:00]} 50. Kf1 {[%emt 0:00:29]} Kf4 {[%emt 0:00:06]} 51. e5 {[%emt 0:01:10]} Bd3+ {[%emt 0:00:51]} 52. Kg1 {[%emt 0:00:04]} Kxe5 {[%emt 0:00:12]} 53. Bf1 {[%emt 0:00:38]} Kd4 {[%emt 0:00:47]} 54. Ra1 {[%emt 0:00:54]} Bxf1 {[%emt 0:00:50]} 55. Kxf1 {[%emt 0:00:12]} Kc3 {[%emt 0:00:02]} 56. Ke2 {[%emt 0:00:20]} Kb2 {[%emt 0:00:03]} 0-1